[Event "Titled Tuesday Blitz August 09 Early 2022"]
[White "Ovezdurdyyeva, Jemal"]
[Black "Jorquera, Marcelo"]
[WhiteFideId "14001888"]
[BlackFideId "3401197"]
[WhiteElo "1946"]
[BlackElo "2136"]
[Result "0-1"]
[Round "11"]
[TimeControl "180+1"]
[Date "2022.08.09"]
[WhiteClock "0:00:15"]
[BlackClock "0:00:14"]

1. e4 {[%clk 0:03:00]}  d5 {[%clk 0:02:59]} 2. exd5 {[%clk 0:02:59]}  Qxd5 {[%clk 0:03:00]} 3. Nc3 {[%clk 0:02:59]}  Qa5 {[%clk 0:03:00]} 4. d4 {[%clk 0:03:00]}  Nf6 {[%clk 0:03:00]} 5. Nf3 {[%clk 0:02:59]}  Bf5 {[%clk 0:03:00]} 6. Ne5 {[%clk 0:02:57]}  c6 {[%clk 0:02:58]} 7. g4 {[%clk 0:02:56]}  Be6 {[%clk 0:02:48]} 8. f4 {[%clk 0:02:44]}  g6 {[%clk 0:02:39]} 9. Bd2 {[%clk 0:02:40]}  Qb6 {[%clk 0:02:32]} 10. Bc1 {[%clk 0:02:37]}  Bg7 {[%clk 0:02:22]} 11. h3 {[%clk 0:02:36]}  O-O {[%clk 0:02:15]} 12. Na4 {[%clk 0:02:35]}  Qa5+ {[%clk 0:02:11]} 13. c3 {[%clk 0:02:35]}  Nfd7 {[%clk 0:02:04]} 14. Nf3 {[%clk 0:02:24]}  Rd8 {[%clk 0:01:51]} 15. Qc2 {[%clk 0:02:17]}  Bd5 {[%clk 0:01:41]} 16. Bg2 {[%clk 0:02:15]}  b5 {[%clk 0:01:31]} 17. Nc5 {[%clk 0:02:13]}  Nxc5 {[%clk 0:01:31]} 18. dxc5 {[%clk 0:02:14]}  Nd7 {[%clk 0:01:24]} 19. b4 {[%clk 0:02:13]}  Qc7 {[%clk 0:01:24]} 20. O-O {[%clk 0:02:11]}  a5 {[%clk 0:01:16]} 21. Bb2 {[%clk 0:02:01]}  Qxf4 {[%clk 0:01:11]} 22. Rf2 {[%clk 0:01:41]}  Qg3 {[%clk 0:01:00]} 23. a3 {[%clk 0:01:30]}  Ne5 {[%clk 0:00:56]} 24. Nh2 {[%clk 0:01:20]}  Nc4 {[%clk 0:00:44]} 25. Nf1 {[%clk 0:01:02]}  Qc7 {[%clk 0:00:43]} 26. Bxd5 {[%clk 0:00:57]}  Rxd5 {[%clk 0:00:44]} 27. Re1 {[%clk 0:00:57]}  axb4 {[%clk 0:00:40]} 28. axb4 {[%clk 0:00:57]}  Ra2 {[%clk 0:00:38]} 29. Qb1 {[%clk 0:00:55]}  Ra8 {[%clk 0:00:33]} 30. Ne3 {[%clk 0:00:46]}  Nxe3 {[%clk 0:00:29]} 31. Rxe3 {[%clk 0:00:47]}  Rad8 {[%clk 0:00:26]} 32. Qe4 {[%clk 0:00:44]}  Rd2 {[%clk 0:00:19]} 33. Ree2 {[%clk 0:00:40]}  Rxe2 {[%clk 0:00:19]} 34. Rxe2 {[%clk 0:00:40]}  e6 {[%clk 0:00:19]} 35. Qf3 {[%clk 0:00:38]}  Rd1+ {[%clk 0:00:17]} 36. Kg2 {[%clk 0:00:38]}  Qd7 {[%clk 0:00:17]} 37. Rf2 {[%clk 0:00:32]}  Qd5 {[%clk 0:00:16]} 38. Qxd5 {[%clk 0:00:26]}  exd5 {[%clk 0:00:15]} 39. Rc2 {[%clk 0:00:16]}  Rd3 {[%clk 0:00:14]} 40. Rc1 {[%clk 0:00:15]}  Rd2+ {[%clk 0:00:13]} 41. Kg3 {[%clk 0:00:15]}  Rxb2 {[%clk 0:00:14]} 0-1


[Site "https://www.chess.com"]

[Event "Titled Tuesday Blitz August 09 Early 2022"]
[White "Palencia Morales, Wilson Guillermo"]
[Black "Simonovic, Miroslav"]
[WhiteFideId "4401859"]
[BlackFideId "919152"]
[WhiteElo "2098"]
[BlackElo "2043"]
[Result "1-0"]
[Round "11"]
[TimeControl "180+1"]
[Date "2022.08.09"]
[WhiteClock "0:01:29"]
[BlackClock "0:00:15"]

1. d4 {[%clk 0:02:55]}  Nf6 {[%clk 0:02:58]} 2. c4 {[%clk 0:02:53]}  c5 {[%clk 0:02:59]} 3. d5 {[%clk 0:02:48]}  b5 {[%clk 0:03:00]} 4. cxb5 {[%clk 0:02:48]}  a6 {[%clk 0:03:00]} 5. bxa6 {[%clk 0:02:48]}  Bxa6 {[%clk 0:03:01]} 6. Nc3 {[%clk 0:02:47]}  d6 {[%clk 0:03:01]} 7. e4 {[%clk 0:02:47]}  Bxf1 {[%clk 0:03:02]} 8. Kxf1 {[%clk 0:02:47]}  Nbd7 {[%clk 0:03:03]} 9. g3 {[%clk 0:02:47]}  g6 {[%clk 0:03:03]} 10. Kg2 {[%clk 0:02:48]}  Bg7 {[%clk 0:03:04]} 11. Nf3 {[%clk 0:02:49]}  O-O {[%clk 0:03:04]} 12. a4 {[%clk 0:02:50]}  Qa5 {[%clk 0:03:04]} 13. Ra3 {[%clk 0:02:42]}  Rfb8 {[%clk 0:03:03]} 14. Nd2 {[%clk 0:02:41]}  Qb4 {[%clk 0:02:58]} 15. Qc2 {[%clk 0:02:38]}  Ne5 {[%clk 0:02:42]} 16. h3 {[%clk 0:02:22]}  c4 {[%clk 0:02:19]} 17. Nb5 {[%clk 0:02:15]}  Nd3 {[%clk 0:02:03]} 18. Nxc4 {[%clk 0:02:05]}  Nxc1 {[%clk 0:01:43]} 19. Rxc1 {[%clk 0:02:03]}  Nxe4 {[%clk 0:00:58]} 20. Qxe4 {[%clk 0:01:57]}  Rxa4 {[%clk 0:00:58]} 21. Rxa4 {[%clk 0:01:56]}  Qxa4 {[%clk 0:00:57]} 22. Nd4 {[%clk 0:01:47]}  Rb4 {[%clk 0:00:30]} 23. Nc6 {[%clk 0:01:45]}  Rxb2 {[%clk 0:00:29]} 24. Nxd6 {[%clk 0:01:32]}  Qa2 {[%clk 0:00:17]} 25. Nxe7+ {[%clk 0:01:31]}  Kf8 {[%clk 0:00:15]} 26. Rc8# {[%clk 0:01:29]} 1-0


[Site "https://www.chess.com"]

[Event "Titled Tuesday Blitz August 09 Early 2022"]
[White "Pulpan, Jakub"]
[Black "Livaic, Leon"]
[WhiteFideId "302759"]
[BlackFideId "14531534"]
[WhiteElo "2451"]
[BlackElo "2540"]
[Result "1/2-1/2"]
[Round "11"]
[TimeControl "180+1"]
[Date "2022.08.09"]
[WhiteClock "0:00:13"]
[BlackClock "0:00:07"]

1. Nf3 {[%clk 0:03:00]}  Nf6 {[%clk 0:02:58]} 2. b3 {[%clk 0:03:00]}  g6 {[%clk 0:02:59]} 3. Bb2 {[%clk 0:02:57]}  Bg7 {[%clk 0:03:00]} 4. g3 {[%clk 0:02:57]}  O-O {[%clk 0:03:00]} 5. Bg2 {[%clk 0:02:58]}  b6 {[%clk 0:02:59]} 6. c4 {[%clk 0:02:58]}  Bb7 {[%clk 0:02:59]} 7. Nc3 {[%clk 0:02:58]}  c5 {[%clk 0:02:59]} 8. O-O {[%clk 0:02:58]}  d5 {[%clk 0:02:59]} 9. Nxd5 {[%clk 0:02:59]}  Nxd5 {[%clk 0:03:00]} 10. Bxg7 {[%clk 0:02:59]}  Kxg7 {[%clk 0:03:01]} 11. cxd5 {[%clk 0:03:00]}  Qxd5 {[%clk 0:03:01]} 12. d4 {[%clk 0:03:01]}  Na6 {[%clk 0:03:01]} 13. e4 {[%clk 0:03:01]}  Qd7 {[%clk 0:02:55]} 14. d5 {[%clk 0:03:00]}  e6 {[%clk 0:02:49]} 15. Ne5 {[%clk 0:02:57]}  Qd8 {[%clk 0:02:39]} 16. d6 {[%clk 0:02:50]}  f6 {[%clk 0:02:38]} 17. Nc4 {[%clk 0:02:48]}  b5 {[%clk 0:02:35]} 18. Ne3 {[%clk 0:02:45]}  Qb6 {[%clk 0:02:25]} 19. a4 {[%clk 0:02:36]}  Rad8 {[%clk 0:01:47]} 20. axb5 {[%clk 0:02:23]}  Qxb5 {[%clk 0:01:30]} 21. Nc4 {[%clk 0:02:19]}  Rd7 {[%clk 0:01:29]} 22. e5 {[%clk 0:02:11]}  Bxg2 {[%clk 0:01:27]} 23. exf6+ {[%clk 0:02:09]}  Rxf6 {[%clk 0:01:27]} 24. Kxg2 {[%clk 0:02:10]}  Nb8 {[%clk 0:01:14]} 25. Ra5 {[%clk 0:01:50]}  Qc6+ {[%clk 0:01:04]} 26. Kg1 {[%clk 0:01:51]}  Qd5 {[%clk 0:01:05]} 27. Re1 {[%clk 0:01:16]}  Nc6 {[%clk 0:01:03]} 28. Qxd5 {[%clk 0:01:16]}  exd5 {[%clk 0:01:02]} 29. Rxc5 {[%clk 0:01:17]}  dxc4 {[%clk 0:00:35]} 30. Rxc6 {[%clk 0:01:14]}  cxb3 {[%clk 0:00:35]} 31. Rb1 {[%clk 0:00:41]}  Rb7 {[%clk 0:00:30]} 32. Rc3 {[%clk 0:00:22]}  Rxd6 {[%clk 0:00:29]} 33. Rcxb3 {[%clk 0:00:22]}  Rdb6 {[%clk 0:00:28]} 34. Rxb6 {[%clk 0:00:22]}  axb6 {[%clk 0:00:29]} 35. f4 {[%clk 0:00:21]}  b5 {[%clk 0:00:28]} 36. Kf2 {[%clk 0:00:22]}  b4 {[%clk 0:00:27]} 37. Ke3 {[%clk 0:00:22]}  Kf6 {[%clk 0:00:24]} 38. g4 {[%clk 0:00:22]}  b3 {[%clk 0:00:23]} 39. h3 {[%clk 0:00:22]}  b2 {[%clk 0:00:23]} 40. Kd3 {[%clk 0:00:14]}  Ke6 {[%clk 0:00:18]} 41. Kc3 {[%clk 0:00:12]}  Kd5 {[%clk 0:00:18]} 42. Rxb2 {[%clk 0:00:10]}  Ra7 {[%clk 0:00:06]} 43. Rb5+ {[%clk 0:00:05]}  Ke4 {[%clk 0:00:06]} 44. Rb4+ {[%clk 0:00:06]}  Kf3 {[%clk 0:00:04]} 45. f5 {[%clk 0:00:04]}  gxf5 {[%clk 0:00:03]} 46. gxf5 {[%clk 0:00:04]}  Rd7 {[%clk 0:00:02]} 47. Rd4 {[%clk 0:00:04]}  Rf7 {[%clk 0:00:02]} 48. Rh4 {[%clk 0:00:04]}  Kg3 {[%clk 0:00:01]} 49. Rh5 {[%clk 0:00:04]}  Kf3 {[%clk 0:00:01]} 50. Kd4 {[%clk 0:00:04]}  Kf4 {[%clk 0:00:02]} 51. Kd3 {[%clk 0:00:05]}  Rxf5 {[%clk 0:00:02]} 52. Rh4+ {[%clk 0:00:05]}  Kg5 {[%clk 0:00:02]} 53. Rxh7 {[%clk 0:00:06]}  Rf3+ {[%clk 0:00:03]} 54. Ke4 {[%clk 0:00:06]}  Rf8 {[%clk 0:00:03]} 55. Rg7+ {[%clk 0:00:06]}  Kh4 {[%clk 0:00:04]} 56. Rh7+ {[%clk 0:00:06]}  Kg5 {[%clk 0:00:04]} 57. Ke5 {[%clk 0:00:07]}  Re8+ {[%clk 0:00:04]} 58. Kd4 {[%clk 0:00:08]}  Kg6 {[%clk 0:00:05]} 59. Rh4 {[%clk 0:00:08]}  Kg5 {[%clk 0:00:06]} 60. Rh7 {[%clk 0:00:08]}  Kg6 {[%clk 0:00:06]} 61. Rh4 {[%clk 0:00:08]}  Kg5 {[%clk 0:00:06]} 62. Rg4+ {[%clk 0:00:09]}  Kh5 {[%clk 0:00:06]} 63. Kd3 {[%clk 0:00:09]}  Re1 {[%clk 0:00:06]} 64. Rg3 {[%clk 0:00:09]}  Kh4 {[%clk 0:00:05]} 65. Rf3 {[%clk 0:00:10]}  Rh1 {[%clk 0:00:05]} 66. Ke4 {[%clk 0:00:10]}  Rxh3 {[%clk 0:00:05]} 67. Rf8 {[%clk 0:00:11]}  Kg3 {[%clk 0:00:06]} 68. Rg8+ {[%clk 0:00:11]}  Kf2 {[%clk 0:00:06]} 69. Rf8+ {[%clk 0:00:11]}  Ke2 {[%clk 0:00:07]} 70. Rf7 {[%clk 0:00:12]}  Re3+ {[%clk 0:00:07]} 71. Kd5 {[%clk 0:00:12]}  Kd3 {[%clk 0:00:06]} 72. Rf4 {[%clk 0:00:11]}  Re1 {[%clk 0:00:06]} 73. Rd4+ {[%clk 0:00:11]}  Kc2 {[%clk 0:00:06]} 74. Rc4+ {[%clk 0:00:12]}  Kd3 {[%clk 0:00:06]} 75. Rd4+ {[%clk 0:00:12]}  Kc2 {[%clk 0:00:07]} 76. Rc4+ {[%clk 0:00:13]}  Kd3 {[%clk 0:00:07]} 77. Rd4+ {[%clk 0:00:13]} 1/2-1/2


[Site "https://www.chess.com"]

[Event "Titled Tuesday Blitz August 09 Early 2022"]
[White "Quirke, Jeffrey"]
[Black "Petrova, Irina"]
[WhiteFideId "2013029"]
[BlackFideId "14124122"]
[WhiteElo "2222"]
[BlackElo "2021"]
[Result "1-0"]
[Round "11"]
[TimeControl "180+1"]
[Date "2022.08.09"]
[WhiteClock "0:00:58"]
[BlackClock "0:01:26"]

1. d4 {[%clk 0:03:00]}  d6 {[%clk 0:03:00]} 2. e4 {[%clk 0:03:00]}  Nf6 {[%clk 0:02:59]} 3. Bd3 {[%clk 0:02:58]}  e5 {[%clk 0:02:59]} 4. c3 {[%clk 0:02:58]}  d5 {[%clk 0:02:56]} 5. dxe5 {[%clk 0:02:47]}  Nxe4 {[%clk 0:02:55]} 6. Nf3 {[%clk 0:02:47]}  Nc6 {[%clk 0:02:53]} 7. O-O {[%clk 0:02:45]}  Nc5 {[%clk 0:02:50]} 8. Bb5 {[%clk 0:02:42]}  Bg4 {[%clk 0:02:49]} 9. Nbd2 {[%clk 0:02:35]}  Be7 {[%clk 0:02:47]} 10. b4 {[%clk 0:02:29]}  Ne6 {[%clk 0:02:45]} 11. Qa4 {[%clk 0:02:26]}  O-O {[%clk 0:02:40]} 12. Bxc6 {[%clk 0:02:20]}  bxc6 {[%clk 0:02:41]} 13. Qxc6 {[%clk 0:02:18]}  Nf4 {[%clk 0:02:27]} 14. Nd4 {[%clk 0:01:55]}  a5 {[%clk 0:02:07]} 15. bxa5 {[%clk 0:01:17]}  Rxa5 {[%clk 0:01:57]} 16. Qb7 {[%clk 0:01:10]}  c5 {[%clk 0:01:45]} 17. Nc6 {[%clk 0:01:07]}  Qe8 {[%clk 0:01:32]} 18. Nxe7+ {[%clk 0:01:04]}  Kh8 {[%clk 0:01:32]} 19. Nb3 {[%clk 0:01:01]}  Ra8 {[%clk 0:01:26]} 20. Bxf4 {[%clk 0:00:58]} 1-0


[Site "https://www.chess.com"]

[Event "Titled Tuesday Blitz August 09 Early 2022"]
[White "Remolar Gallen, Jose"]
[Black "Costachi, Mihnea"]
[WhiteFideId "2215187"]
[BlackFideId "1217518"]
[WhiteElo "2205"]
[BlackElo "2437"]
[Result "0-1"]
[Round "11"]
[TimeControl "180+1"]
[Date "2022.08.09"]
[WhiteClock "0:00:01"]
[BlackClock "0:00:23"]

1. d4 {[%clk 0:03:00]}  d6 {[%clk 0:03:00]} 2. e4 {[%clk 0:02:59]}  Nf6 {[%clk 0:02:59]} 3. Nc3 {[%clk 0:03:00]}  e5 {[%clk 0:02:59]} 4. Nf3 {[%clk 0:02:55]}  Nbd7 {[%clk 0:02:56]} 5. g4 {[%clk 0:02:55]}  Nxg4 {[%clk 0:02:52]} 6. Rg1 {[%clk 0:02:53]}  Ngf6 {[%clk 0:02:53]} 7. Bc4 {[%clk 0:02:54]}  exd4 {[%clk 0:02:46]} 8. Qxd4 {[%clk 0:02:45]}  Nb6 {[%clk 0:02:46]} 9. Bb3 {[%clk 0:02:42]}  Be6 {[%clk 0:02:46]} 10. Bg5 {[%clk 0:02:40]}  c5 {[%clk 0:02:45]} 11. Qe3 {[%clk 0:02:30]}  c4 {[%clk 0:02:44]} 12. O-O-O {[%clk 0:02:12]}  cxb3 {[%clk 0:02:44]} 13. axb3 {[%clk 0:02:13]}  h6 {[%clk 0:02:40]} 14. Bh4 {[%clk 0:02:07]}  g5 {[%clk 0:02:40]} 15. Bg3 {[%clk 0:02:01]}  Bg7 {[%clk 0:02:26]} 16. Bxd6 {[%clk 0:01:52]}  Nfd7 {[%clk 0:02:16]} 17. h4 {[%clk 0:01:49]}  g4 {[%clk 0:02:15]} 18. Nd4 {[%clk 0:01:48]}  Qf6 {[%clk 0:02:11]} 19. f4 {[%clk 0:01:17]}  Rc8 {[%clk 0:02:08]} 20. f5 {[%clk 0:00:58]}  Bxb3 {[%clk 0:01:57]} 21. Nxb3 {[%clk 0:00:56]}  Nc4 {[%clk 0:01:53]} 22. e5 {[%clk 0:00:46]}  Qxf5 {[%clk 0:01:43]} 23. Qd4 {[%clk 0:00:35]}  Nxd6 {[%clk 0:01:39]} 24. Qxd6 {[%clk 0:00:36]}  Bxe5 {[%clk 0:01:40]} 25. Rge1 {[%clk 0:00:34]}  Qe6 {[%clk 0:01:14]} 26. Qb4 {[%clk 0:00:17]}  f6 {[%clk 0:01:07]} 27. Qxb7 {[%clk 0:00:11]}  Nb6 {[%clk 0:00:56]} 28. Nd4 {[%clk 0:00:06]}  Qd7 {[%clk 0:00:44]} 29. Qe4 {[%clk 0:00:06]}  O-O {[%clk 0:00:41]} 30. Nf5 {[%clk 0:00:05]}  Qh7 {[%clk 0:00:41]} 31. Qxg4+ {[%clk 0:00:04]}  Kh8 {[%clk 0:00:41]} 32. Rg1 {[%clk 0:00:02]}  Rg8 {[%clk 0:00:41]} 33. Qh5 {[%clk 0:00:02]}  Nc4 {[%clk 0:00:33]} 34. Nxh6 {[%clk 0:00:02]}  Bf4+ {[%clk 0:00:33]} 35. Kb1 {[%clk 0:00:01]}  Bxh6 {[%clk 0:00:27]} 36. Rxg8+ {[%clk 0:00:01]}  Rxg8 {[%clk 0:00:27]} 37. Qd5 {[%clk 0:00:01]}  Ne3 {[%clk 0:00:23]} 0-1


[Site "https://www.chess.com"]

[Event "Titled Tuesday Blitz August 09 Early 2022"]
[White "Rohith Krishna S"]
[Black "Khabinets, Ivan"]
[WhiteFideId "46617051"]
[BlackFideId "14115980"]
[WhiteElo "2118"]
[BlackElo "2114"]
[Result "1-0"]
[Round "11"]
[TimeControl "180+1"]
[Date "2022.08.09"]
[WhiteClock "0:00:30"]
[BlackClock "0:00:02"]

1. e4 {[%clk 0:03:00]}  c5 {[%clk 0:02:59]} 2. Nf3 {[%clk 0:03:00]}  Nc6 {[%clk 0:03:00]} 3. d4 {[%clk 0:03:01]}  cxd4 {[%clk 0:03:01]} 4. Nxd4 {[%clk 0:03:01]}  Nf6 {[%clk 0:03:02]} 5. Nc3 {[%clk 0:03:01]}  e5 {[%clk 0:03:02]} 6. Ndb5 {[%clk 0:03:01]}  d6 {[%clk 0:03:03]} 7. Bg5 {[%clk 0:03:01]}  a6 {[%clk 0:03:04]} 8. Na3 {[%clk 0:03:01]}  b5 {[%clk 0:03:04]} 9. Nd5 {[%clk 0:03:02]}  Be7 {[%clk 0:03:05]} 10. Bxf6 {[%clk 0:03:01]}  Bxf6 {[%clk 0:03:05]} 11. c3 {[%clk 0:03:01]}  O-O {[%clk 0:03:05]} 12. Be2 {[%clk 0:03:01]}  Rb8 {[%clk 0:03:04]} 13. O-O {[%clk 0:03:00]}  Bg5 {[%clk 0:03:04]} 14. Nc2 {[%clk 0:03:00]}  Be6 {[%clk 0:03:05]} 15. f4 {[%clk 0:02:57]}  exf4 {[%clk 0:03:04]} 16. Nxf4 {[%clk 0:02:57]}  Qb6+ {[%clk 0:03:00]} 17. Kh1 {[%clk 0:02:51]}  Bxf4 {[%clk 0:02:52]} 18. Rxf4 {[%clk 0:02:50]}  Rfd8 {[%clk 0:02:52]} 19. Nd4 {[%clk 0:02:50]}  Ne5 {[%clk 0:02:52]} 20. Qf1 {[%clk 0:02:49]}  b4 {[%clk 0:02:49]} 21. Bxa6 {[%clk 0:02:45]}  bxc3 {[%clk 0:02:49]} 22. bxc3 {[%clk 0:02:45]}  Qb2 {[%clk 0:02:28]} 23. Qe1 {[%clk 0:02:28]}  Ra8 {[%clk 0:02:23]} 24. Bf1 {[%clk 0:02:26]}  Rxa2 {[%clk 0:02:20]} 25. Rxa2 {[%clk 0:02:26]}  Qxa2 {[%clk 0:02:21]} 26. Rf2 {[%clk 0:02:23]}  Qa3 {[%clk 0:02:16]} 27. h3 {[%clk 0:02:22]}  Rc8 {[%clk 0:02:15]} 28. Nb5 {[%clk 0:02:20]}  Qc5 {[%clk 0:02:14]} 29. Rd2 {[%clk 0:02:16]}  Rd8 {[%clk 0:01:58]} 30. Qd1 {[%clk 0:02:15]}  d5 {[%clk 0:01:28]} 31. Qa4 {[%clk 0:01:46]}  h6 {[%clk 0:01:20]} 32. Be2 {[%clk 0:01:23]}  Rd7 {[%clk 0:01:17]} 33. Qd4 {[%clk 0:01:18]}  Qxd4 {[%clk 0:01:12]} 34. Rxd4 {[%clk 0:01:16]}  dxe4 {[%clk 0:01:11]} 35. Rxe4 {[%clk 0:01:16]}  Nc6 {[%clk 0:01:08]} 36. c4 {[%clk 0:01:10]}  Rd2 {[%clk 0:01:05]} 37. Bf3 {[%clk 0:01:08]}  Ne7 {[%clk 0:00:47]} 38. Nc7 {[%clk 0:01:04]}  Rd6 {[%clk 0:00:39]} 39. Re5 {[%clk 0:00:54]}  Ng6 {[%clk 0:00:36]} 40. Rc5 {[%clk 0:00:53]}  Bd7 {[%clk 0:00:32]} 41. Kh2 {[%clk 0:00:48]}  Ne7 {[%clk 0:00:32]} 42. Nb5 {[%clk 0:00:45]}  Re6 {[%clk 0:00:28]} 43. Rc7 {[%clk 0:00:43]}  Be8 {[%clk 0:00:09]} 44. Ra7 {[%clk 0:00:42]}  Kf8 {[%clk 0:00:09]} 45. Ra8 {[%clk 0:00:41]}  Nf5 {[%clk 0:00:07]} 46. c5 {[%clk 0:00:31]}  Re7 {[%clk 0:00:04]} 47. Bc6 {[%clk 0:00:29]}  f6 {[%clk 0:00:03]} 48. Nd6 {[%clk 0:00:29]}  Nxd6 {[%clk 0:00:03]} 49. cxd6 {[%clk 0:00:29]}  Re6 {[%clk 0:00:01]} 50. d7 {[%clk 0:00:29]}  Rxc6 {[%clk 0:00:02]} 51. dxe8=Q# {[%clk 0:00:30]} 1-0


[Site "https://www.chess.com"]

[Event "Titled Tuesday Blitz August 09 Early 2022"]
[White "Rosenberg, Evan S"]
[Black "Vovk, Orest"]
[WhiteFideId "2019299"]
[BlackFideId "14113490"]
[WhiteElo "2445"]
[BlackElo "2203"]
[Result "1-0"]
[Round "11"]
[TimeControl "180+1"]
[Date "2022.08.09"]
[WhiteClock "0:01:29"]
[BlackClock "0:01:41"]

1. e4 {[%clk 0:02:59]}  g5 {[%clk 0:02:59]} 2. Nc3 {[%clk 0:02:54]}  Bg7 {[%clk 0:02:59]} 3. Bc4 {[%clk 0:02:50]}  d6 {[%clk 0:02:52]} 4. d3 {[%clk 0:02:50]}  h6 {[%clk 0:02:52]} 5. a4 {[%clk 0:02:50]}  Nc6 {[%clk 0:02:52]} 6. a5 {[%clk 0:02:41]}  a6 {[%clk 0:02:51]} 7. f4 {[%clk 0:02:35]}  gxf4 {[%clk 0:02:45]} 8. Bxf4 {[%clk 0:02:26]}  Bxc3+ {[%clk 0:02:39]} 9. bxc3 {[%clk 0:02:26]}  Nf6 {[%clk 0:02:40]} 10. Nf3 {[%clk 0:02:10]}  Be6 {[%clk 0:02:39]} 11. Bxe6 {[%clk 0:02:05]}  fxe6 {[%clk 0:02:40]} 12. O-O {[%clk 0:02:04]}  e5 {[%clk 0:02:31]} 13. Be3 {[%clk 0:02:02]}  e6 {[%clk 0:02:22]} 14. Nh4 {[%clk 0:01:57]}  Rg8 {[%clk 0:02:14]} 15. Qf3 {[%clk 0:01:47]}  Rf8 {[%clk 0:02:00]} 16. Bxh6 {[%clk 0:01:42]}  Rf7 {[%clk 0:01:59]} 17. Bg5 {[%clk 0:01:41]}  Qd7 {[%clk 0:01:49]} 18. Bxf6 {[%clk 0:01:39]}  Ne7 {[%clk 0:01:49]} 19. Qh5 {[%clk 0:01:32]}  Qb5 {[%clk 0:01:41]} 20. Bxe7 {[%clk 0:01:29]} 1-0


[Site "https://www.chess.com"]

[Event "Titled Tuesday Blitz August 09 Early 2022"]
[White "Samunenkov, Ihor"]
[Black "Molina, Roberto Junio Brito"]
[WhiteFideId "14187086"]
[BlackFideId "2109450"]
[WhiteElo "2441"]
[BlackElo "2403"]
[Result "1-0"]
[Round "11"]
[TimeControl "180+1"]
[Date "2022.08.09"]
[WhiteClock "0:00:11"]
[BlackClock "0:00:31"]

1. d4 {[%clk 0:03:00]}  d5 {[%clk 0:02:57]} 2. c4 {[%clk 0:03:01]}  c6 {[%clk 0:02:56]} 3. Nf3 {[%clk 0:02:53]}  Nf6 {[%clk 0:02:56]} 4. g3 {[%clk 0:02:53]}  dxc4 {[%clk 0:02:55]} 5. Bg2 {[%clk 0:02:54]}  b5 {[%clk 0:02:55]} 6. Ne5 {[%clk 0:02:52]}  Bb7 {[%clk 0:02:55]} 7. a4 {[%clk 0:02:50]}  a6 {[%clk 0:02:54]} 8. O-O {[%clk 0:02:50]}  e6 {[%clk 0:02:52]} 9. b3 {[%clk 0:02:50]}  cxb3 {[%clk 0:02:52]} 10. Qxb3 {[%clk 0:02:45]}  Be7 {[%clk 0:02:50]} 11. Bb2 {[%clk 0:02:36]}  O-O {[%clk 0:02:50]} 12. Rc1 {[%clk 0:02:31]}  Qb6 {[%clk 0:02:48]} 13. Na3 {[%clk 0:01:55]}  Rc8 {[%clk 0:02:45]} 14. Nac4 {[%clk 0:01:27]}  Qd8 {[%clk 0:02:44]} 15. Nxf7 {[%clk 0:01:00]}  Kxf7 {[%clk 0:02:33]} 16. Ne5+ {[%clk 0:01:00]}  Kf8 {[%clk 0:02:33]} 17. Qxe6 {[%clk 0:01:01]}  Qe8 {[%clk 0:02:32]} 18. axb5 {[%clk 0:01:01]}  axb5 {[%clk 0:02:31]} 19. Rxa8 {[%clk 0:00:56]}  Bxa8 {[%clk 0:02:32]} 20. d5 {[%clk 0:00:37]}  Bb4 {[%clk 0:01:59]} 21. Qxe8+ {[%clk 0:00:32]}  Kxe8 {[%clk 0:01:55]} 22. dxc6 {[%clk 0:00:31]}  Na6 {[%clk 0:01:45]} 23. Bh3 {[%clk 0:00:12]}  Rc7 {[%clk 0:01:43]} 24. Ra1 {[%clk 0:00:12]}  Bxc6 {[%clk 0:01:24]} 25. Rxa6 {[%clk 0:00:12]}  Bd5 {[%clk 0:01:21]} 26. Be6 {[%clk 0:00:03]}  Bc5 {[%clk 0:01:12]} 27. Bxd5 {[%clk 0:00:03]}  Nxd5 {[%clk 0:01:13]} 28. Rc6 {[%clk 0:00:03]}  g6 {[%clk 0:01:07]} 29. Rxc7 {[%clk 0:00:03]}  Nxc7 {[%clk 0:01:08]} 30. Kf1 {[%clk 0:00:03]}  Ke7 {[%clk 0:01:07]} 31. Nd3 {[%clk 0:00:04]}  Ke6 {[%clk 0:01:08]} 32. Nxc5+ {[%clk 0:00:04]}  Kd5 {[%clk 0:01:08]} 33. Nd3 {[%clk 0:00:04]}  Ne6 {[%clk 0:01:09]} 34. Nf4+ {[%clk 0:00:04]}  Nxf4 {[%clk 0:01:09]} 35. gxf4 {[%clk 0:00:05]}  Ke4 {[%clk 0:01:09]} 36. e3 {[%clk 0:00:05]}  Kf3 {[%clk 0:01:09]} 37. Bc3 {[%clk 0:00:04]}  h5 {[%clk 0:01:10]} 38. Kg1 {[%clk 0:00:04]}  h4 {[%clk 0:01:10]} 39. h3 {[%clk 0:00:04]}  Ke2 {[%clk 0:01:10]} 40. e4 {[%clk 0:00:04]}  Kd3 {[%clk 0:01:11]} 41. e5 {[%clk 0:00:03]}  Kxc3 {[%clk 0:00:15]} 42. e6 {[%clk 0:00:03]}  b4 {[%clk 0:00:16]} 43. e7 {[%clk 0:00:04]}  b3 {[%clk 0:00:16]} 44. e8=Q {[%clk 0:00:05]}  b2 {[%clk 0:00:17]} 45. Qc6+ {[%clk 0:00:05]}  Kd2 {[%clk 0:00:18]} 46. Qb5 {[%clk 0:00:05]}  Kc1 {[%clk 0:00:19]} 47. Qc4+ {[%clk 0:00:06]}  Kd1 {[%clk 0:00:19]} 48. Qb3+ {[%clk 0:00:06]}  Kc1 {[%clk 0:00:19]} 49. Qc3+ {[%clk 0:00:07]}  Kb1 {[%clk 0:00:20]} 50. Kg2 {[%clk 0:00:07]}  Ka2 {[%clk 0:00:21]} 51. Qa5+ {[%clk 0:00:08]}  Kb3 {[%clk 0:00:22]} 52. Qb5+ {[%clk 0:00:08]}  Kc3 {[%clk 0:00:23]} 53. Kf3 {[%clk 0:00:08]}  Kc2 {[%clk 0:00:23]} 54. Qc4+ {[%clk 0:00:08]}  Kd2 {[%clk 0:00:24]} 55. Qb3 {[%clk 0:00:08]}  Kc1 {[%clk 0:00:24]} 56. Qc3+ {[%clk 0:00:09]}  Kb1 {[%clk 0:00:24]} 57. Kg4 {[%clk 0:00:09]}  Ka2 {[%clk 0:00:24]} 58. Qc2 {[%clk 0:00:07]}  Ka3 {[%clk 0:00:24]} 59. Qb1 {[%clk 0:00:07]}  g5 {[%clk 0:00:24]} 60. Kxg5 {[%clk 0:00:08]}  Kb3 {[%clk 0:00:24]} 61. f5 {[%clk 0:00:08]}  Kc4 {[%clk 0:00:25]} 62. f6 {[%clk 0:00:09]}  Kd5 {[%clk 0:00:26]} 63. Qxb2 {[%clk 0:00:09]}  Ke6 {[%clk 0:00:27]} 64. Qb6+ {[%clk 0:00:09]}  Kf7 {[%clk 0:00:28]} 65. Qc7+ {[%clk 0:00:09]}  Ke6 {[%clk 0:00:29]} 66. Qe7+ {[%clk 0:00:10]}  Kd5 {[%clk 0:00:30]} 67. f7 {[%clk 0:00:10]}  Kd4 {[%clk 0:00:30]} 68. f8=Q {[%clk 0:00:10]}  Kd5 {[%clk 0:00:31]} 69. Qfd8+ {[%clk 0:00:11]} 1-0


[Site "https://www.chess.com"]